Cogmind - Beta 15 @@@ ROGUE MODE // 2025.10.21 @ 05:25:25 // Winter2022/Polymind Player: NQH Result: Destroyed by G-50 Soldier with Heavy Laser Performance ------------- Evolutions (1) 500 Regions Visited (6) 1200 Robots Destroyed (3) 15 Value Destroyed (150) 150 Prototype IDs (0) 0 Alien Tech Used (0) 0 Bonus (1975) 1975 TOTAL SCORE: 3540 Bonus ------- Polymind Skill 1846 Pacifist 200 Friendly Fire -71 Cogmind --------- Core Integrity 0/400 Matter 0/0 Energy 74/100 System Corruption 0% Temperature Cool (9) Movement Core (50) Location -6/Proximity Caves Parts ------- > --- POWER (1) -------- (None) > --- PROPULSION (2) --- (None) > --- UTILITY (1) ------ (None) > --- WEAPON (1) ------- (None) > --- INVENTORY (0) ---- (None) Peak State ------------ > --- POWER ------------ Reinforced Deuterium Engine > --- PROPULSION ------- Light Treads Light Treads > --- UTILITY ---------- Improved Light Armor Plating > --- WEAPON ----------- Mace > --- INVENTORY -------- (None) [Rating: 11] Favorites ----------- Power Light Ion Engine Engine Light Ion Engine Propulsion Light Treads Treads Light Treads Wheel Wheel Utility Improved Light Armor Plating Device Seismic Detector Storage Small Storage Unit Protection Improved Light Armor Plating Weapon Mace Special Weapon Mining Laser Impact Weapon Mace Build | -11 -10 -10 -9 -9 -7 -6 ------- Run | Yrd Mat Min Mat Min Zio Pro Slots Evolved . | . . . . . . . Power . | . . . . . . . Propulsion . | . . . . . . . Utility . | . . . . . . . Weapon . | . . . . . . . Parts Attached . | . . . . . . . Power . | . . . . . . . Engine . | . . . . . . . Core . | . . . . . . . Reactor . | . . . . . . . Propulsion . | . . . . . . . Treads . | . . . . . . . Leg . | . . . . . . . Wheel . | . . . . . . . Hover . | . . . . . . . Flight . | . . . . . . . Utility . | . . . . . . . Device . | . . . . . . . Storage . | . . . . . . . Processor . | . . . . . . . Hackware . | . . . . . . . Protection . | . . . . . . . Artifact . | . . . . . . . Weapon . | . . . . . . . Energy Gun . | . . . . . . . Energy Cannon . | . . . . . . . Ballistic Gun . | . . . . . . . Ballistic Cannon . | . . . . . . . Launcher . | . . . . . . . Special Weapon . | . . . . . . . Impact Weapon . | . . . . . . . Slashing Weapon . | . . . . . . . Piercing Weapon . | . . . . . . . Special Melee Weapon . | . . . . . . . Unidentified Prototypes . | . . . . . . . Parts Lost 10 | . 2 . . 5 . 3 Power 1 | . . . . 1 . . Propulsion 5 | . 1 . . 2 . 2 Utility 3 | . 1 . . 1 . 1 Weapon 1 | . . . . 1 . . Highest Loss Streak 5 | . 2 . . 5 . 3 To Critical Strikes . | . . . . . . . Average Backups . | 1 3 . . . . . Power . | . . . . . . . Propulsion . | 1 2 . . . . . Utility . | . . . . . . . Weapon . | . . . . . . . Tool/Special . | . . . . . . . Unused Backups 4 | . 4 . . . . . Power 1 | . 1 . . . . . Propulsion 3 | . 3 . . . . . Utility . | . . . . . . . Weapon . | . . . . . . . Tool/Special . | . . . . . . . Average Slot Usage (%) 72 | . 85 80 100 77 . 70 Engine 14 | . 18 12 16 13 . 14 Treads 13 | . . . . . . 28 Wheel 13 | . 36 26 33 19 . . Device 11 | . 14 26 33 30 . . Storage 2 | . 16 . . . . . Protection 6 | . . . . . . 13 Special Weapon 4 | . . 12 16 13 . . Impact Weapon 6 | . . . . . . 14 Peak Build Rating 11 | 5 5 8 8 8 . 11 Average Rating 6 | 4 4 6 8 5 . 8 On Entrance 3 | . 5 . 8 8 1 . Naked Turns 107 | . 10 13 . . 26 58 Heaviest Build 20 | 9 9 6 6 6 . 20 Greatest Support 40 | 32 32 20 20 20 3 40 Greatest Overweight (x) 5 | . . . . 1 . 5 Average Overweight (x) . | . . . . . . . Largest Inventory Capacity 4 | 4 4 . . . . 1 Average Capacity 1 | 3 3 . . . . . Most Carried 4 | 4 4 . . . . . Average Carried . | 2 2 . . . . . Final Capacity 4 | 4 . . . . . . Final Carried 4 | 4 . . . . . . Class Distribution -------------------- 39% | Brawler 26% | Tunneler 18% | Cogmind 12% | Recycler 3% | Worker Dominant Class ---------------- Recycler | -10/Materials Tunneler | -10/Mines Tunneler | -9/Materials Tunneler | -9/Mines Cogmind | -7/Zion Brawler | -6/Proximity Caves Resources | -11 -10 -10 -9 -9 -7 -6 ----------- Run | Yrd Mat Min Mat Min Zio Pro Matter Collected . | . . . . . . . Remotely . | . . . . . . . Salvage Created 251 | . . . . . . 251 Parts 5 | . . . . . . 5 Haulers Intercepted . | . . . . . . . Recyclers Shooed . | . . . . . . . Parts Field Recycled . | . . . . . . . Retrieved Matter . | . . . . . . . Parts Self-Destructed 5 | . . . . . . 5 Prevented . | . . . . . . . Kills | -11 -10 -10 -9 -9 -7 -6 ------- Run | Yrd Mat Min Mat Min Zio Pro Combat Hostiles Destroyed 3 | . . . . . . 3 Melee 2 | . . . . . . 2 Classes Destroyed 2 | . . . . . . 2 Grunt 3 | . . . . . . 3 Tinkerer 1 | . . . . . . 1 Best Kill Streak 2 | . . . . . . 2 Combat Bots Only 2 | . . . . . . 2 Max Kills in Single Turn 1 | . . . . . . 1 Gunslinging . | . . . . . . . Exploded . | . . . . . . . Melee 1 | . . . . . . 1 Uniques/NPCs Destroyed . | . . . . . . . Combat | -11 -10 -10 -9 -9 -7 -6 -------- Run | Yrd Mat Min Mat Min Zio Pro Hostile Shots Fired 94 | . 29 . . 6 . 59 Missed 28 | . 7 . . 2 . 19 Hits 66 | . 22 . . 4 . 40 Projectile 66 | . 22 . . 4 . 40 AOE 7 | . . . . 7 . . Damage Taken 1519 | . 256 . . 338 . 925 Core 512 | . 108 . . 142 . 262 Absorbed by Shields . | . . . . . . . Core Remaining (%) 78 | 100 . 56 . . . . Volleys Fired . | . . . . . . . Largest . | . . . . . . . Hottest . | . . . . . . . Shots Fired . | . . . . . . . Gun . | . . . . . . . Cannon . | . . . . . . . Launcher . | . . . . . . . Special . | . . . . . . . Kinetic . | . . . . . . . Thermal . | . . . . . . . Explosive . | . . . . . . . Electromagnetic . | . . . . . . . Robot Hit Streak . | . . . . . . . Robot Miss Streak . | . . . . . . . Penetration Max . | . . . . . . . Secondary Targets . | . . . . . . . Shots Hit Robots 19 | . . . . . . 19 Core Hits 2 | . . . . . . 2 Critical Kills 2 | . . . . . . 2 Critical Parts Destroyed 3 | . . . . . . 3 Critical Strikes 6 | . . . . . . 6 Smash 6 | . . . . . . 6 Melee Attacks 22 | . . . . . . 22 Impact 22 | . . . . . . 22 Slashing . | . . . . . . . Piercing . | . . . . . . . Sneak Attacks 2 | . . . . . . 2 Combat Hostiles 1 | . . . . . . 1 Follow-up Attacks . | . . . . . . . Damage Inflicted 654 | . . . . . . 654 Guns . | . . . . . . . Cannons . | . . . . . . . Explosions . | . . . . . . . Melee 646 | . . . . . . 646 Ramming 8 | . . . . . . 8 Kinetic . | . . . . . . . Thermal . | . . . . . . . Explosive . | . . . . . . . Electromagnetic . | . . . . . . . Impact 646 | . . . . . . 646 Slashing . | . . . . . . . Piercing . | . . . . . . . Highest Corruption . | . . . . . . . Average Corruption . | . . . . . . . Corruption Purged . | . . . . . . . Corruption Blocked . | . . . . . . . Overload Shots . | . . . . . . . Overflow Damage 167 | . . . . . . 167 Projectiles . | . . . . . . . Explosions . | . . . . . . . Melee 167 | . . . . . . 167 Knockbacks . | . . . . . . . Impact . | . . . . . . . Kinetic . | . . . . . . . Secondary . | . . . . . . . Self-Inflicted Damage 3 | . . . . . . 3 Shots . | . . . . . . . Rammed 3 | . . . . . . 3 Targets Rammed 3 | . . . . . . 3 Kicked . | . . . . . . . Crushed . | . . . . . . . Highest Temperature 60 | . 41 . . 12 . 60 Average Temperature 26 | . 17 . . 8 . 28 Received Heat Transfer 398 | . 147 . . 20 . 231 Siege Activations . | . . . . . . . Martial Activations . | . . . . . . . Shielding Activations . | . . . . . . . Robots Disrupted . | . . . . . . . Combat Hostiles . | . . . . . . . Robots Corrupted 1 | . . . . . . 1 Combat Hostiles 1 | . . . . . . 1 Parts Fried 2 | . . . . . . 2 Impact Corruptions 5 | . . . . . . 5 Robots Melted . | . . . . . . . Combat Hostiles . | . . . . . . . Parts Melted . | . . . . . . . Heat Transferred . | . . . . . . . Parts Sabotaged . | . . . . . . . Parts Stolen . | . . . . . . . Parts Stripped . | . . . . . . . Power Chain Reactions . | . . . . . . . Alert | -11 -10 -10 -9 -9 -7 -6 ------- Run | Yrd Mat Min Mat Min Zio Pro Maximum Alert Level . | . . . . . . . Low Security (%) 100 | 100 100 100 100 100 . . Level 1 . | . . . . . . . Level 2 . | . . . . . . . Level 3 . | . . . . . . . Level 4 . | . . . . . . . Level 5 . | . . . . . . . High Security . | . . . . . . . Max Security . | . . . . . . . Peak Influence . | . . . . . . . Initial . | . . . . . . . Average . | . . . . . . . Influence Increases 75 | . . . . . . 75 Destroy 0b10 Robot/C 60 | . . . . . . 60 Lose Combat Pursuer 15 | . . . . . . 15 Influence Decreases 75 | . . . . . . 75 Time Decay 75 | . . . . . . 75 Squads Dispatched 1 | . 1 . . . . . Investigation . | . . . . . . . Extermination . | . . . . . . . Reinforcement 1 | . 1 . . . . . Assault . | . . . . . . . Garrison . | . . . . . . . Intercept . | . . . . . . . Searches Triggered . | . . . . . . . Construction Impeded . | . . . . . . . Haulers Reinforced . | . . . . . . . Active Scanning Responses . | . . . . . . . Cargo Convoy Interrupts . | . . . . . . . Stealth | -11 -10 -10 -9 -9 -7 -6 --------- Run | Yrd Mat Min Mat Min Zio Pro Distress Signals 1 | . 1 . . . . . Communications Jammed . | . . . . . . . Distress Signals . | . . . . . . . Times Spotted 45 | . 12 . . 19 . 14 Peak Tracking Total 20 | . 7 . . 20 . 6 Tactical Retreats 2 | . . . . 1 . 1 Traps | -11 -10 -10 -9 -9 -7 -6 ------- Run | Yrd Mat Min Mat Min Zio Pro Traps Triggered . | . . . . . . . Indirectly . | . . . . . . . Trap Hack Attempts . | . . . . . . . Triggered . | . . . . . . . Disarmed . | . . . . . . . Reprogrammed . | . . . . . . . Reused . | . . . . . . . Traps Extracted . | . . . . . . . Installed . | . . . . . . . Triggered . | . . . . . . . Machines | -11 -10 -10 -9 -9 -7 -6 ---------- Run | Yrd Mat Min Mat Min Zio Pro Machines Disabled . | . . . . . . . Max in Single Turn . | . . . . . . . Machines Repaired . | . . . . . . . Machines Dismantled . | . . . . . . . Machines Sabotaged . | . . . . . . . Overloaded Fab Kills . | . . . . . . . Hacking | -11 -10 -10 -9 -9 -7 -6 --------- Run | Yrd Mat Min Mat Min Zio Pro Machines Accessed . | . . . . . . . Terminals . | . . . . . . . Fabricators . | . . . . . . . Repair Stations . | . . . . . . . Recycling Units . | . . . . . . . Scanalyzers . | . . . . . . . Garrison Access . | . . . . . . . Total Hacks . | . . . . . . . Successful . | . . . . . . . Failed . | . . . . . . . Catastrophic . | . . . . . . . Database Lockouts . | . . . . . . . Manual . | . . . . . . . Terminals . | . . . . . . . Fabricators . | . . . . . . . Repair Stations . | . . . . . . . Recycling Units . | . . . . . . . Scanalyzers . | . . . . . . . Garrison Access . | . . . . . . . Terminal Hacks . | . . . . . . . Fabricator Hacks . | . . . . . . . Repair Station Hacks . | . . . . . . . Recycling Unit Hacks . | . . . . . . . Scanalyzer . | . . . . . . . Garrison Access Hacks . | . . . . . . . Unauthorized Hacks . | . . . . . . . Terminals . | . . . . . . . Fabricators . | . . . . . . . Repair Stations . | . . . . . . . Recycling Units . | . . . . . . . Scanalyzers . | . . . . . . . Garrison Access . | . . . . . . . Data Cores Recovered . | . . . . . . . Used . | . . . . . . . Hacking Detections . | . . . . . . . Full Trace Events . | . . . . . . . Feedback Events . | . . . . . . . Feedback Blocked . | . . . . . . . Robot Schematics Acquired . | . . . . . . . Robots Built . | . . . . . . . Authchips . | . . . . . . . Time . | . . . . . . . Total Robot Build Rating . | . . . . . . . Part Schematics Acquired . | . . . . . . . Parts Built . | . . . . . . . Authchips . | . . . . . . . Time . | . . . . . . . Total Part Build Rating . | . . . . . . . Parts Repaired . | . . . . . . . Time . | . . . . . . . Parts Recycled . | . . . . . . . Recycled Matter . | . . . . . . . Retrieved Matter . | . . . . . . . Retrieved Components . | . . . . . . . Parts Scanalyzed . | . . . . . . . Part Schematics Acquired . | . . . . . . . Parts Damaged . | . . . . . . . Bothacking | -11 -10 -10 -9 -9 -7 -6 ------------ Run | Yrd Mat Min Mat Min Zio Pro Used RIF Installer . | . . . . . . . Robots Hacked 1 | . . . . . . 1 Non-combat . | . . . . . . . Combat 1 | . . . . . . 1 Robot Hacks Applied 1 | . . . . . . 1 find_shortcuts 1 | . . . . . . 1 Relay Couplers Released . | . . . . . . . Fabnet Peak Effective % . | . . . . . . . Robots Rewired . | . . . . . . . Allies Hacked . | . . . . . . . Hacks Repelled . | . . . . . . . Allies | -11 -10 -10 -9 -9 -7 -6 -------- Run | Yrd Mat Min Mat Min Zio Pro Total Allies . | . . . . . . . Largest Group . | . . . . . . . Highest-Rated Group . | . . . . . . . Highest-Rated Ally . | . . . . . . . Total Orders . | . . . . . . . Ally Attacks . | . . . . . . . Total Damage . | . . . . . . . Kills . | . . . . . . . Allies Corrupted . | . . . . . . . Allies Melted . | . . . . . . . Intel | -11 -10 -10 -9 -9 -7 -6 ------- Run | Yrd Mat Min Mat Min Zio Pro Active Infowar (turns) 153 | . . 81 18 54 . . Terrain 139 | . . 81 18 40 . . Seismic 153 | . . 81 18 54 . . Robot Analysis Total 4 | 1 1 1 . . . 1 Derelict Logs Recovered 3 | . . 2 . 1 . . Drone Launches . | . . . . . . . Drone Recoveries . | . . . . . . . Exploration | -11 -10 -10 -9 -9 -7 -6 ------------- Run | Yrd Mat Min Mat Min Zio Pro Turns Passed 619 | 40 100 94 18 54 26 287 Spaces Moved 646 | 43 115 127 23 76 51 211 Core 252 | 13 22 24 . 31 51 111 Treads 100 | . . . . . . 100 Legs . | . . . . . . . Wheels 294 | 30 93 103 23 45 . . Hover . | . . . . . . . Flight . | . . . . . . . Fastest Speed 50 | 50 50 50 80 50 50 50 Average Speed 85 | 84 86 74 80 70 50 105 Slowest Speed 300 | 100 100 80 80 100 50 300 Overloaded Moves . | . . . . . . . Propulsion Burnouts . | . . . . . . . Robots Hopped . | . . . . . . . Potential Cave-ins 1 | . . . . 1 . . Cave-ins Triggered . | . . . . . . . Exploration Rate (%) 23 | 3 32 52 5 32 9 30 Regions Visited 6 Branch Regions 4 Pre-discovered Areas 2 | . . 1 . 1 . . Known Exits Taken . | . . . . . . . Unknown Exits Taken 6 | 1 1 1 1 1 1 . Scrap Searched 2 | . . 1 . . . 1 Spaces Dug . | . . . . . . . Terrain Destroyed . | . . . . . . . Melee . | . . . . . . . Projectile . | . . . . . . . AOE . | . . . . . . . Terrain Rammed . | . . . . . . . Walls Destroyed . | . . . . . . . Machines Disabled . | . . . . . . . Actions | -11 -10 -10 -9 -9 -7 -6 --------- Run | Yrd Mat Min Mat Min Zio Pro Total 670 | 46 115 126 22 75 50 236 Wait . | . . . . . . . Move 640 | 42 114 126 22 75 50 211 Hop . | . . . . . . . Pick Up 5 | 4 1 . . . . . Fast Attach . | . . . . . . . Attach . | . . . . . . . Detach . | . . . . . . . Swap . | . . . . . . . Drop . | . . . . . . . Fire . | . . . . . . . Melee 22 | . . . . . . 22 Ram 3 | . . . . . . 3 Kick . | . . . . . . . Crush . | . . . . . . . Escape Stasis . | . . . . . . . Rewire . | . . . . . . . Trap . | . . . . . . . Miscellaneous . | . . . . . . . Route ------- -11/Scrapyard -10/Materials -10/Mines -9/Materials -9/Mines -7/Zion -6/Proximity Caves History --------- Turn | Location | Event 3 | -11/Scrapyard | Discovered new exit (range 15) 41 | -11/Scrapyard | Entered Materials 134 | -10/Materials | Discovered new exit (range 11) 141 | -10/Materials | Entered Mines 148 | -10/Mines | Received a Rocket Launcher from a helpful Derelict 175 | -10/Mines | Learned 2 Materials zone layouts 203 | -10/Mines | Found a Scrap Suit stashed away for nefarious purposes 224 | -10/Mines | Learned location of Storage (-7) 226 | -10/Mines | Discovered new exit (range 12) 235 | -10/Mines | Entered Materials 236 | -9/Materials | Discovered new exit (range 14) 253 | -9/Materials | Entered Mines 258 | -9/Mines | Met a Derelict bent on vengeance 263 | -9/Mines | Learned location of Zion (-7) 270 | -9/Mines | Assembled infested the area 301 | -9/Mines | A Derelict revealed a hidden shortcut to a safe place 307 | -9/Mines | Entered Zion 324 | -7/Zion | Lost 5 parts (1p2n1u1w) 327 | -7/Zion | Discovered new exit (range 10) 333 | -7/Zion | Entered Proximity Caves 341 | -6/Proximity Caves | Spotter reported a threat 485 | -6/Proximity Caves | Spotter reported a threat 510 | -6/Proximity Caves | Received a Behemoth hack from an annoying Tinkerer 556 | -6/Proximity Caves | Spotted B-75 Beast 576 | -6/Proximity Caves | Core integrity fell below 50% 598 | -6/Proximity Caves | Core integrity fell below 20% 612 | -6/Proximity Caves | Lost 3 parts (2n1u) 620 | -6/Proximity Caves | Destroyed by G-50 Soldier with Heavy Laser Last Messages --------------- 00521_ Component Analysis Suite fried. 00521_ 08-G80(c) destroyed. 00568_ B-75 Beast suffers critical hit (Smash). 00571_ Destroyed Hvy. Plasma Cannon. 00571_ B-75 Beast system corrupted by crushing effect. 00578_ Imp. Light Armor Plating destroyed. 00581_ Lgt. Treads destroyed. 00587_ Knocked back. 00589_ C-30 ARC bursts open, deploying its payload. 00589_ G-67 Veteran unfolds itself. 00589_ G-50 Soldier unfolds itself. 00590_ B-75 Beast misfires. 00591_ B-75 Beast suffers critical hit (Smash). 00591_ Destroyed Coolant Injector. 00591_ B-75 Beast system corrupted by crushing effect. 00592_ Knocked back. 00599_ Released control of B-48 Gladiator. 00601_ B-48 Gladiator reactivates. Map ----- +----------------------------------------------------+ | ?????????????????????????????????????????????????? | | ?????????????????????????????????????????????????? | | ?????????????????????????????????????????????????? | | ?????????????????????????????????????????????????? | | ?????????????????????????????????????????????????? | | ?????????????????????????#####???????????????????? | | ???????????####?????###### ##??????????????????? | | ??????????## #??#### #???#??????????????? | | ?????????## #### #??? #??????????????? | | ????????## ### #???????????????? | | ######### % ## "#????????????????? | | # ## #### ##????????????????? | | ## ####"% #?????????????????? | | #### ######"#"" ###?????????????????? | | ###??# #???##%% ##???????????????????? | | ###????# ### ##???#; #????????????????????? | | ???????# #?######??## #????????????????????? | | ???????# #???## ##??# #????????????????????? | | ???????# ##### ####g ###??????????????????? | | ???????# #??????????????????? | | ???????# #### ???????????????????? | | ???????######### ##% ##? #?????????????????? | | ???????????????# #### #? ##?????????????????? | | ???????????????#####?## ## #??????????????????? | | ????????????????????## ## #?????????????? | | ????????????????????# @ ????????? | | ???????????????????# ????????? | | ???????????????? ### ?????????? | | ???????????????# ##?????????????? | | ???????????????# ##### ###??????????????? | | ???????????????#?????## ##????????????????? | | ??????????????????????## # ##?????????????????? | | ???????????????????????##### #??????????????????? | | ???????????????????????????? #??????????????????? | | ????????????????????????????? ??????????????????? | | ????????????????????????????? ??????????????????? | | ????????????????????????????? ?????????????????? | | ?????????????????????????????? ?????????????????? | | ??????????????????????????????? ????????????????? | | ?????????????????????????????????????????????????? | | ?????????????????????????????????????????????????? | | ?????????????????????????????????????????????????? | | ?????????????????????????????????????????????????? | | ?????????????????????????????????????????????????? | | ?????????????????????????????????????????????????? | | ?????????????????????????????????????????????????? | | ?????????????????????????????????????????????????? | | ?????????????????????????????????????????????????? | | ?????????????????????????????????????????????????? | | ?????????????????????????????????????????????????? | +----------------------------------------------------+ Best States ------------- Heat Dissipation 25 Energy Generation 21 Energy Capacity 240 Matter Stores 25 Matter Capacity 75 Sight Range 16 Terrain Scan Range 16 Terrain Scan Density 10 Armor Coverage 150 Resistance: I 25 Resistance: S 25 Evasion (%) 50 Recoil Reduction 2 Item Schematics ----------------- None Robot Schematics ------------------ None Fabricated ------------ Nothing Repaired ---------- Nothing Alien Tech Used ----------------- None Achievements -------------- None Challenges ------------ None Polymind | -11 -10 -10 -9 -9 -7 -6 ---------- Run | Yrd Mat Min Mat Min Zio Pro Hosts 4 | 1 1 1 . . . 1 Combat Hostiles 1 | . . . . . . 1 Allies . | . . . . . . . Unique Host Classes 4 | 1 1 1 . . . 1 Average Host Suspicion 59 | 5 54 20 4 17 . 96 Unsuspicious Activity 20 | 2 6 2 . . . 10 Returns to Shadow . | . . . . . . . Fuzzy Dispatches . | . . . . . . . Protomatter Created 35 | . . . . 35 . . Used 66 | 5 5 5 . . . 51 Decayed . | . . . . . . . Highest Spend 51 | 5 5 5 . . . 51 Top 5 Hosts by Kills: B-48 Gladiator (-6/Proximity Caves: 3) Game ------ Seed SmartbombFlyingRay Manual? 0 Play Time 00:06:36 Cumulative 36.9 hours Start 2025.10.21 @ 05:20:38 End 2025.10.21 @ 05:25:25 Sessions 1 Manual Loads 0 Difficulty Rogue Special Mode Winter2022/Polymind Game No. 146 Rogue 146 Adventurer 0 Explorer 0 Win Type - Total 0 Types 0/0/0/0/0/0/0/0/0/0 Lore% 12 Gallery% 32 Achievement% 31 Wizard Run 0 Options --------- Layout 1 ASCII 0 Keyboard 1 Movement Vi Keybinds 0 Fullscreen 1 Font 16/SmallcapsGlow Map View 55x38 Zoom Use 0% Tactical HUD 1 Map Filters NONE Filters NONE Steam 1 RUN: 96abe115-6b19-4480-81f6-4d7329d3a146